fUST/lending_fUST_20240202
["ID","MTS","AMOUNT","RATE_DAILY","PERIOD"]
[313171791,1706874635597,-496.79462894,0.000228,3]
[313171792,1706874635609,-570.71840827,0.000228,3]
[313171815,1706874638452,-246.00696279,0.000228,3]
[313171816,1706874638463,-1093.64,0.00022801,3]
[313171817,1706874638473,-3825.04560632,0.0002281,2]
[313171832,1706874641640,-2973.18974817,0.0002281,2]
[313171833,1706874641650,-3862.13867228,0.0002281,2]
[313171834,1706874641664,-2936.09668221,0.0002281,2]
[313171835,1706874641673,-6798.23535449,0.0002281,2]
[313171836,1706874641682,-1045.86857797,0.00022811,2]
[313171837,1706874641696,-20669.44030483,0.00022811,2]
[313171838,1706874641705,-453.55708389,0.00023039,2]
[313171839,1706874641713,-309.97675659,0.00023039,2]
[313171840,1706874641722,-1200.08348294,0.00023039,2]
[313171841,1706874641731,-309.9380124,0.0002304,2]
[313171842,1706874641742,-495.02412602,0.00023041,2]
[313171843,1706874641753,-181.26836622,0.00023041,2]
[313171844,1706874641763,-309.9380124,0.00023041,2]
[313171845,1706874641772,-1268.83572051,0.00023041,2]
[313171846,1706874641781,-2495.53443848,0.00023041,2]
[313171847,1706874641793,-982.86986293,0.00023041,2]
[313171864,1706874643591,-1359.69556654,0.00023041,2]
[313171865,1706874643601,-622.14775641,0.00023041,2]
[313171866,1706874643610,-309.9380124,0.00023041,2]
[313171867,1706874643619,-20902.32807036,0.00023041,2]
[313171868,1706874643628,-562.41090453,0.00023042,2]
[313171869,1706874643636,-679.86163762,0.00023042,2]
[313171870,1706874643646,-31877.5018636,0.00023043,2]
[313171871,1706874643656,-191.29534954,0.00024158,2]
[313171872,1706874643665,-685.5391546,0.00024257,2]
[313171873,1706874643675,-165.662086,0.00026225,2]
[313171874,1706874643685,-155.02635448,0.00027,2]
[313171875,1706874643694,-1000.0,0.00027,27]
[313171876,1706874643706,-5000.0,0.00027014,2]
[313171877,1706874643716,-500.0,0.00027397,2]
[313171878,1706874643725,-500.0,0.00027397,2]
[313171879,1706874643734,-500.0,0.00027397,2]
[313171880,1706874643743,-535.1294643,0.00027397,2]
[313171881,1706874643753,-584.67767255,0.00027397,2]
[313171882,1706874643762,-553.98,0.00027397,2]
[313171883,1706874643771,-500.0,0.00027397,2]
[313171884,1706874643780,-500.0,0.00027397,2]
[313171885,1706874643789,-500.0,0.00027397,2]
[313171886,1706874643798,-500.0,0.00027397,2]
[313171887,1706874643813,-500.0,0.00027397,2]
[313171888,1706874643822,-155.0,0.00027397,2]
[313171889,1706874643928,-500.0,0.00027397,2]
[313171890,1706874643938,-500.0,0.00027397,2]
[313171891,1706874643947,-500.0,0.00027397,2]
[313171892,1706874643957,-500.0,0.00027397,2]
[313171893,1706874643966,-500.0,0.00027397,2]
[313171894,1706874643975,-500.0,0.00027397,2]
[313171895,1706874643985,-289.40686167,0.00027397,2]
[313171896,1706874643994,-500.0,0.00027397,2]
[313171897,1706874644003,-500.0,0.00027397,2]
[313171898,1706874644012,-500.0,0.00027397,2]
[313171899,1706874644021,-500.0,0.00027397,2]
[313171900,1706874644030,-174.3742027,0.00027397,2]
[313171901,1706874644039,-500.0,0.00027397,2]
[313171902,1706874644048,-500.0,0.00027397,2]
[313171903,1706874644057,-500.0,0.00027397,2]
[313171904,1706874644067,-613.3031848,0.00027397,2]
[313171905,1706874644077,-500.0,0.00027397,2]
[313171906,1706874644086,-500.0,0.00027397,2]
[313171907,1706874644095,-375.38166832,0.00027397,2]
[313171908,1706874644105,-500.0,0.00027397,2]
[313171909,1706874644114,-511.29742275,0.00027397,2]
[313171910,1706874644123,-500.0,0.00027397,2]
[313171911,1706874644133,-500.0,0.00027397,2]
[313171912,1706874644142,-500.0,0.00027397,2]
[313171913,1706874644151,-161.96932222,0.00027397,2]
[313171914,1706874644161,-500.0,0.00027397,2]
[313171915,1706874644170,-522.07,0.00027397,2]
[313171916,1706874644179,-500.0,0.00027397,2]
[313171917,1706874644189,-503.21,0.00027397,2]
[313171918,1706874644199,-500.0,0.00027397,2]
[313171919,1706874644207,-500.0,0.00027397,2]
[313171920,1706874644217,-1000.0,0.00027397,2]
[313171921,1706874644226,-500.0,0.00027397,2]
[313171923,1706874644235,-500.0,0.00027397,2]
[313171925,1706874644244,-500.0,0.00027397,2]
[313171927,1706874644254,-506.10921843,0.00027397,2]
[313171928,1706874644263,-500.0,0.00027397,2]
[313171929,1706874644271,-525.87,0.00027397,2]
[313171931,1706874644281,-500.0,0.00027397,2]
[313171933,1706874644290,-500.0,0.00027397,2]
[313171934,1706874644299,-500.0,0.00027397,2]
[313171935,1706874644308,-500.0,0.00027397,2]
[313171936,1706874644317,-500.0,0.00027397,2]
[313171938,1706874644326,-500.0,0.00027397,2]
[313171939,1706874644335,-1607.46,0.00027397,2]
[313171941,1706874644345,-500.0,0.00027397,2]
[313171943,1706874644354,-500.0,0.00027397,2]
[313171945,1706874644363,-500.0,0.00027397,2]
[313171946,1706874644372,-500.0,0.00027397,2]
[313171948,1706874644381,-500.0,0.00027397,2]
[313171950,1706874644392,-875.83,0.00027397,2]
[313171951,1706874644401,-500.0,0.00027397,2]
[313171953,1706874644410,-665.56,0.00027397,2]
[313171954,1706874644420,-500.0,0.00027397,2]
[313171956,1706874644429,-207.67499752,0.00027397,2]
[313171958,1706874644441,-500.0,0.00027397,2]
[313171960,1706874644450,-500.0,0.00027397,2]
[313171961,1706874644459,-948.32,0.00027397,2]
[313171963,1706874644468,-500.0,0.00027397,2]
[313171964,1706874644479,-500.0,0.00027397,2]
[313171965,1706874644488,-500.0,0.00027397,2]
[313171966,1706874644497,-518.66224676,0.00027397,2]
[313171967,1706874644506,-500.0,0.00027397,2]
[313171968,1706874644518,-1000.0,0.00027397,2]
[313171970,1706874644527,-6172.81,0.00027397,2]
[313171971,1706874644536,-5194.78,0.00027397,2]
[313171972,1706874644547,-500.0,0.00027397,2]
[313171973,1706874644558,-500.0,0.00027397,2]
[313171974,1706874644569,-500.0,0.00027397,2]
[313171975,1706874644580,-500.0,0.00027397,2]
[313171976,1706874644591,-500.0,0.00027397,2]
[313171977,1706874644601,-500.0,0.00027397,2]
[313171978,1706874644611,-500.0,0.00027397,2]
[313171979,1706874644621,-500.0,0.00027397,2]
[313171980,1706874644630,-500.0,0.00027397,2]
[313171981,1706874644640,-500.0,0.00027397,2]
[313171982,1706874644648,-500.0,0.00027397,2]
[313171983,1706874644657,-500.0,0.00027397,2]
[313171984,1706874644668,-379.27,0.00027397,2]
[313171985,1706874644677,-500.0,0.00027397,2]
[313171986,1706874644688,-898.5,0.00027397,2]
[313171987,1706874644698,-500.0,0.00027397,2]
[313171988,1706874644707,-500.0,0.00027397,2]
[313171989,1706874644717,-500.0,0.00027397,2]
[313171990,1706874644727,-5376.6,0.00027397,2]
[313171991,1706874644737,-500.0,0.00027397,2]
[313171992,1706874644746,-500.0,0.0002767,2]
[313171993,1706874644755,-500.0,0.0002767,2]
[313171994,1706874644765,-500.0,0.0002767,2]
[313171995,1706874644774,-500.0,0.0002767,2]
[313171996,1706874644783,-500.0,0.0002767,2]
[313171997,1706874644792,-500.0,0.0002767,2]
[313171998,1706874644801,-500.0,0.0002767,2]
[313171999,1706874644810,-500.0,0.0002767,2]
[313172000,1706874644820,-500.0,0.0002767,2]
[313172001,1706874644830,-500.0,0.0002767,2]
[313172002,1706874644839,-500.0,0.0002767,2]
[313172003,1706874644849,-500.0,0.0002767,2]
[313172004,1706874644859,-500.0,0.0002767,2]
[313172005,1706874644869,-500.0,0.0002767,2]
[313172006,1706874644881,-500.0,0.0002767,2]
[313172007,1706874644890,-500.0,0.0002767,2]
[313172008,1706874644901,-500.0,0.0002767,2]
[313172009,1706874644914,-500.0,0.0002767,2]
[313172010,1706874644925,-500.0,0.0002767,2]
[313172011,1706874644934,-500.0,0.0002767,2]
[313172012,1706874644943,-500.0,0.0002767,2]
[313172013,1706874644952,-500.0,0.0002767,2]
[313172014,1706874644961,-500.0,0.0002767,2]
[313172015,1706874644970,-500.0,0.0002767,2]
[313172016,1706874644979,-500.0,0.0002767,2]
[313172017,1706874644988,-500.0,0.0002767,2]
[313172018,1706874644998,-201.89731182,0.0002767,2]
[313172019,1706874645007,-500.0,0.0002767,2]
[313172020,1706874645016,-500.0,0.0002767,2]
[313172021,1706874645026,-500.0,0.0002767,2]
[313172022,1706874645034,-500.0,0.0002767,2]
[313172023,1706874645043,-500.0,0.0002767,2]
[313172024,1706874645052,-500.0,0.0002767,2]
[313172025,1706874645061,-500.0,0.0002767,2]
[313172026,1706874645070,-500.0,0.0002767,2]
[313172027,1706874645079,-500.0,0.0002767,2]
[313172028,1706874645088,-500.0,0.0002767,2]
[313172029,1706874645098,-500.0,0.0002767,2]
[313172030,1706874645106,-500.0,0.0002767,2]
[313172031,1706874645116,-500.0,0.0002767,2]
[313172032,1706874645125,-500.0,0.0002767,2]
[313172033,1706874645134,-500.0,0.0002767,2]
[313172034,1706874645143,-500.0,0.0002767,2]
[313172035,1706874645152,-500.0,0.0002767,2]
[313172036,1706874645161,-500.0,0.0002767,2]
[313172037,1706874645171,-500.0,0.0002767,2]
[313172038,1706874645180,-500.0,0.0002767,2]
[313172039,1706874645189,-500.0,0.0002767,2]
[313172040,1706874645199,-500.0,0.0002767,2]
[313172041,1706874645209,-500.0,0.0002767,2]
[313172042,1706874645219,-500.0,0.0002767,2]
[313172043,1706874645228,-500.0,0.0002767,2]
[313172044,1706874645237,-500.0,0.0002767,2]
[313172045,1706874645247,-500.0,0.0002767,2]
[313172046,1706874645257,-500.0,0.00027671,2]
[313172047,1706874645266,-500.0,0.00027671,2]
[313172048,1706874645276,-500.0,0.00027671,2]
[313172049,1706874645285,-513.77,0.00027671,2]
[313172050,1706874645295,-356.88,0.00027671,2]
[313172051,1706874645304,-500.0,0.00027671,2]
[313172052,1706874645314,-500.0,0.00027671,2]
[313172053,1706874645324,-1000.0,0.00027671,2]
[313172054,1706874645333,-500.0,0.00027671,2]
[313172055,1706874645343,-246.58,0.00027671,2]
[313172056,1706874645353,-525.87,0.00027671,2]
[313172057,1706874645363,-160.639041,0.00027671,2]
[313172058,1706874645373,-160.639041,0.00027671,2]
[313172059,1706874645382,-1607.46,0.00027671,2]
[313172060,1706874645390,-500.0,0.00027671,2]
[313172061,1706874645400,-500.0,0.00027671,2]
[313172062,1706874645415,-500.0,0.00027671,2]
[313172063,1706874645424,-875.83,0.00027671,2]
[313172064,1706874645434,-665.56,0.00027671,2]
[313172065,1706874645445,-948.32,0.00027671,2]
[313172066,1706874645454,-500.0,0.00027671,2]
[313172067,1706874645464,-1000.0,0.00027671,2]
[313172068,1706874645473,-6172.81,0.00027671,2]
[313172069,1706874645483,-5194.78,0.00027671,2]
[313172070,1706874645494,-500.0,0.00027671,2]
[313172071,1706874645504,-500.0,0.00027671,2]
[313172072,1706874645514,-500.0,0.00027671,2]
[313172073,1706874645523,-500.0,0.00027671,2]
[313172074,1706874645532,-500.0,0.00027671,2]
[313172075,1706874645542,-500.0,0.00027671,2]
[313172076,1706874645552,-898.5,0.00027671,2]
[313172077,1706874645567,-500.0,0.00027671,2]
[313172078,1706874645577,-5376.6,0.00027671,2]
[313172079,1706874645588,-500.0,0.00027945,2]
[313172080,1706874645597,-160.91,0.00027945,2]
[313172081,1706874645607,-500.0,0.00027945,2]
[313172082,1706874645617,-265.291012,0.00027945,2]
[313172083,1706874645626,-265.291012,0.00027945,2]
[313172084,1706874645636,-151.0,0.00027945,2]
[313172085,1706874645644,-500.0,0.00027945,2]
[313172086,1706874645653,-500.0,0.00027945,2]
[313172087,1706874645663,-1000.0,0.00027945,2]
[313172088,1706874645672,-500.0,0.00027945,2]
[313172089,1706874645681,-525.87,0.00027945,2]
[313172090,1706874645690,-160.639041,0.00027945,2]
[313172091,1706874645699,-160.639041,0.00027945,2]
[313172092,1706874645709,-1607.46,0.00027945,2]
[313172093,1706874645718,-505.23459207,0.00027945,2]
[313172094,1706874645728,-500.0,0.00027945,2]
[313172095,1706874645737,-613.29751683,0.00027945,2]
[313172096,1706874645746,-875.83,0.00027945,2]
[313172097,1706874645755,-665.56,0.00027945,2]
[313172098,1706874645763,-948.32,0.00027945,2]
[313172099,1706874645773,-500.0,0.00027945,2]
[313172100,1706874645782,-1000.0,0.00027945,2]
[313172101,1706874645794,-6172.81,0.00027945,2]
[313172102,1706874645803,-5194.78,0.00027945,2]
[313172103,1706874645811,-500.0,0.00027945,2]
[313172104,1706874645820,-500.0,0.00027945,2]
[313172105,1706874645829,-500.0,0.00027945,2]
[313172106,1706874645838,-500.0,0.00027945,2]
[313172107,1706874645847,-352.37,0.00027945,2]
[313172108,1706874645856,-500.0,0.00027945,2]
[313172109,1706874645865,-898.5,0.00027945,2]
[313172110,1706874645875,-423.84478016,0.00027945,2]
[313172111,1706874645884,-5376.6,0.00027945,2]
[313172112,1706874645893,-1578.9733708,0.00027989,2]
[313172113,1706874645902,-746.79969855,0.00027989,2]
[313172114,1706874645911,-818.24868862,0.00027989,2]
[313172115,1706874645921,-151.0,0.00027989,2]
[313172116,1706874645930,-151.0,0.00027989,2]
[313172117,1706874645939,-265.291012,0.00027989,2]
[313172118,1706874645947,-265.291012,0.00027989,2]
[313172119,1706874645956,-200.075431,0.00027989,2]
[313172120,1706874645966,-160.639041,0.00027989,2]
[313172121,1706874645975,-160.639041,0.00027989,2]
[313172122,1706874645984,-500.0,0.00027989,2]
[313172123,1706874645993,-500.0,0.00027989,2]
[313172124,1706874646003,-5844.8,0.0002799,2]
[313172125,1706874646012,-435.63803697,0.0002799,2]
[313172126,1706874646022,-500.0,0.0002799,2]
[313172127,1706874646033,-500.0,0.0002799,2]
[313172128,1706874646042,-500.0,0.0002799,2]
[313172129,1706874646051,-500.0,0.0002799,2]
[313172130,1706874646060,-500.0,0.0002799,2]
[313172131,1706874646069,-504.04931601,0.0002799,2]
[313172132,1706874646078,-500.0,0.0002799,2]
[313172133,1706874646087,-500.0,0.0002799,2]
[313172135,1706874646096,-500.0,0.0002799,2]
[313172136,1706874646105,-500.0,0.0002799,2]
[313172138,1706874646115,-500.0,0.0002799,2]
[313172140,1706874646124,-500.0,0.0002799,2]
[313172142,1706874646133,-500.0,0.0002799,2]
[313172144,1706874646142,-500.0,0.0002799,2]
[313172146,1706874646151,-500.0,0.0002799,2]
[313172148,1706874646160,-273.04314162,0.0002799,2]
[313172150,1706874646169,-500.0,0.0002799,2]
[313172151,1706874646178,-235.31696019,0.0002799,2]
[313172152,1706874646188,-500.0,0.0002799,10]
[313172153,1706874646197,-500.0,0.0002799,2]
[313172155,1706874646206,-500.0,0.0002799,2]
[313172156,1706874646215,-500.0,0.0002799,2]
[313172157,1706874646225,-500.0,0.0002799,2]
[313172158,1706874646234,-789.97,0.0002799,2]
[313172163,1706874646325,-500.0,0.0002799,2]
[313172164,1706874646335,-500.0,0.0002799,2]
[313172165,1706874646345,-500.0,0.0002799,2]
[313172166,1706874646354,-500.0,0.0002799,2]
[313172167,1706874646363,-444.30257714,0.0002799,2]
[313172168,1706874646373,-500.0,0.0002799,2]
[313172169,1706874646382,-500.0,0.0002799,2]
[313172170,1706874646392,-500.0,0.0002799,2]
[313172171,1706874646401,-151.0,0.0002799,2]
[313172172,1706874646410,-194.7869234,0.0002799,2]
[313172173,1706874646420,-151.0,0.0002799,2]
[313172174,1706874646429,-151.0,0.0002799,2]
[313172175,1706874646441,-500.0,0.0002799,2]
[313172176,1706874646451,-151.0,0.0002799,2]
[313172177,1706874646461,-151.0,0.0002799,2]
[313172178,1706874646470,-151.0,0.0002799,2]
[313172179,1706874646481,-579.52929144,0.0002799,2]
[313172180,1706874646490,-478.36160765,0.0002799,7]
[313172181,1706874646499,-500.0,0.0002799,2]
[313172182,1706874646508,-500.0,0.0002799,2]
[313172183,1706874646519,-500.0,0.0002799,2]
[313172184,1706874646529,-500.0,0.0002799,2]
[313172185,1706874646539,-200.08458816,0.0002799,2]
[313172187,1706874646548,-500.0,0.0002799,2]
[313172188,1706874646557,-500.0,0.0002799,2]
[313172189,1706874646566,-454.45290442,0.0002799,2]
[313172190,1706874646575,-500.0,0.0002799,2]
[313172191,1706874646584,-500.0,0.0002799,2]
[313172192,1706874646594,-500.0,0.0002799,2]
[313172193,1706874646604,-500.0,0.0002799,2]
[313172194,1706874646613,-265.291012,0.0002799,2]
[313172195,1706874646623,-265.291012,0.0002799,2]
[313172196,1706874646632,-265.291012,0.0002799,2]
[313172197,1706874646641,-265.291012,0.0002799,2]
[313172198,1706874646650,-265.291012,0.0002799,2]
[313172199,1706874646659,-265.291012,0.0002799,2]
[313172200,1706874646669,-500.0,0.0002799,2]
[313172201,1706874646678,-500.0,0.0002799,2]
[313172202,1706874646687,-500.0,0.0002799,2]
[313172203,1706874646698,-160.639041,0.0002799,2]
[313172204,1706874646708,-160.639041,0.0002799,2]
[313172205,1706874646718,-160.639041,0.0002799,2]
[313172206,1706874646728,-160.639041,0.0002799,2]
[313172207,1706874646737,-500.0,0.00027991,2]
[313172208,1706874646747,-155.00155002,0.00027991,2]
[313172209,1706874646758,-500.0,0.00027991,2]
[313172210,1706874646768,-160.639041,0.00027991,2]
[313172211,1706874646780,-160.639041,0.00027991,2]
[313172212,1706874646789,-151.0,0.00027992,2]
[313172213,1706874646799,-151.0,0.00027992,2]
[313172214,1706874646809,-160.639041,0.00027997,2]
[313172215,1706874646818,-160.639041,0.00027997,2]
[313172216,1706874646828,-265.291012,0.00027998,2]
[313172217,1706874646837,-265.291012,0.00027998,2]
[313172218,1706874646846,-265.291012,0.00027998,2]
[313172219,1706874646856,-265.291012,0.00027998,2]
[313172220,1706874646864,-160.639041,0.00027998,2]
[313172221,1706874646873,-160.639041,0.00027998,2]
[313172222,1706874646883,-500.0,0.00027998,2]
[313172223,1706874646892,-500.0,0.00027998,2]
[313172224,1706874646901,-151.0,0.00027999,2]
[313172225,1706874646910,-151.0,0.00027999,2]
[313172226,1706874646919,-151.0,0.00027999,2]
[313172227,1706874646928,-151.0,0.00027999,2]
[313172228,1706874646937,-265.291012,0.00027999,2]
[313172229,1706874646946,-265.291012,0.00027999,2]
[313172230,1706874646958,-500.0,0.00027999,2]
[313172231,1706874646967,-500.0,0.00027999,2]
[313172232,1706874646978,-422.01417738,0.00027999,2]
[313172233,1706874646987,-196.23177357,0.00027999,2]
[313172234,1706874646997,-185.54744459,0.00027999,2]
[313172235,1706874647007,-426.69302216,0.00027999,2]
[313172236,1706874647017,-252.70463643,0.00027999,2]
[313172237,1706874647026,-500.0,0.00027999,2]
[313172238,1706874647035,-500.0,0.00027999,2]
[313172239,1706874647044,-500.0,0.00027999,2]
[313172240,1706874647054,-500.0,0.00027999,2]
[313172241,1706874647063,-241.58730373,0.00027999,2]
[313172242,1706874647072,-500.0,0.00027999,2]
[313172243,1706874647081,-500.0,0.00027999,2]
[313172244,1706874647090,-500.0,0.00027999,2]
[313172245,1706874647099,-500.0,0.00027999,2]
[313172246,1706874647108,-500.0,0.00027999,2]
[313172247,1706874647117,-500.0,0.00027999,2]
[313172248,1706874647127,-500.0,0.00027999,2]
[313172249,1706874647137,-500.0,0.00027999,2]
[313172250,1706874647147,-443.11534332,0.00027999,2]
[313172251,1706874647156,-500.0,0.00027999,2]
[313172252,1706874647166,-500.0,0.00027999,2]
[313172253,1706874647176,-500.0,0.00027999,2]
[313172254,1706874647186,-500.0,0.00027999,2]
[313172255,1706874647196,-500.0,0.00027999,2]
[313172256,1706874647205,-500.0,0.00027999,2]
[313172257,1706874647216,-500.0,0.00027999,2]
[313172258,1706874647226,-500.0,0.00027999,2]
[313172259,1706874647236,-200.0,0.00027999,2]
[313172260,1706874647246,-320.32593013,0.00028,3]
[313172261,1706874647256,-14726.84607864,0.00028,20]
[313172262,1706874647273,-35445.16144081,0.00028,20]
[313172263,1706874647285,-863.52,0.00028,20]
[313172264,1706874647356,-1094.6,0.0002766,3]
[313172265,1706874647367,-2287.56440047,0.00028,20]
[313172266,1706874647380,-2468.4066094,0.00028,20]
[313172267,1706874647458,-669.58428825,0.00028,20]
[313172324,1706875808251,151.02114296,0.0002834,30]
[313172325,1706875808322,151.02114296,0.00027773,120]
[313172359,1706875832635,-1016.95893048,0.00022427,2]
[313172360,1706875832645,-930.17192382,0.00022428,2]
[313172361,1706875832657,-87.10343629,0.00022428,2]
[313172363,1706875832667,-323.68814175,0.00022429,2]
[313172364,1706875832676,-502.06315895,0.00022429,2]
[313172365,1706875832686,-500.0,0.0002243,2]
[313172366,1706875832697,-1933.47332083,0.00022431,2]
[313172367,1706875832707,-164.29062038,0.00022449,2]
[313172368,1706875832717,-635.42000017,0.00022578,2]
[313172369,1706875832729,-1311.71085413,0.00022578,2]
[313172370,1706875832739,-260.98805075,0.00023039,2]
[313172371,1706875832748,-385.14417338,0.00023108,2]
[313172395,1706875838593,-8770.83960793,0.00023108,2]
[313172396,1706875838648,-407.26677777,0.00023108,2]
[313172397,1706875838657,-166.666666,0.00023136,2]
[313172398,1706875838667,-24900.0,0.00023403,2]
[313172399,1706875838675,-167.67223168,0.00023656,2]
[313172400,1706875838684,-191.29534954,0.00023656,2]
[313172401,1706875838693,-263.218586,0.00023757,2]
[313172402,1706875838703,-2860.1888,0.00025,2]
[313172403,1706875838712,-155.02635448,0.00027,2]
[313172404,1706875838721,-164.29062038,0.00027297,2]
[313172405,1706875838730,-1482.24,0.00027387,3]
[313172406,1706875838740,-1235.2,0.00027387,3]
[313172407,1706875838751,-1029.34,0.00027387,3]
[313172408,1706875838760,-857.78,0.00027387,3]
[313172409,1706875838770,-500.0,0.00027397,2]
[313172410,1706875838780,-500.0,0.00027397,2]
[313172411,1706875838792,-500.0,0.00027397,2]
[313172412,1706875838801,-500.0,0.00027397,2]
[313172413,1706875838810,-500.0,0.00027397,2]
[313172414,1706875838820,-500.0,0.00027397,2]
[313172415,1706875838831,-500.0,0.00027397,2]
[313172416,1706875838842,-500.0,0.00027397,2]
[313172417,1706875838851,-171.95866094,0.00027397,2]
[313172418,1706875838863,-562.38481904,0.00027397,2]
[313172419,1706875838872,-498.4,0.00027397,10]
[313172420,1706875838881,-500.0,0.00027397,2]
[313172421,1706875838891,-453.61630463,0.00027397,2]
[313172422,1706875838901,-500.0,0.00027397,2]
[313172423,1706875838910,-516.90484755,0.00027397,2]
[313172424,1706875838920,-779.61,0.00027397,2]
[313172425,1706875838929,-500.0,0.00027397,2]
[313172426,1706875838938,-500.0,0.00027397,2]
[313172427,1706875838947,-500.0,0.00027397,2]
[313172428,1706875838957,-500.0,0.00027397,2]
[313172429,1706875838967,-366.8456,0.00027397,2]
[313172430,1706875838976,-475.04330949,0.00027397,2]
[313172431,1706875838985,-500.0,0.00027397,2]
[313172432,1706875838994,-500.0,0.00027397,2]
[313172433,1706875839005,-583.75870075,0.00027397,2]
[313172434,1706875839014,-289.27021984,0.00027397,2]
[313172435,1706875839024,-500.0,0.00027397,2]
[313172436,1706875839033,-500.0,0.00027397,2]
[313172437,1706875839042,-500.0,0.00027397,2]
[313172438,1706875839051,-500.0,0.00027397,2]
[313172439,1706875839059,-500.0,0.00027397,2]
[313172440,1706875839068,-518.69,0.00027397,2]
[313172441,1706875839077,-500.0,0.00027397,2]
[313172442,1706875839086,-500.0,0.00027397,2]
[313172443,1706875839196,-500.0,0.00027397,2]
[313172444,1706875839207,-552.27063157,0.00027397,2]
[313172445,1706875839216,-500.0,0.00027397,2]
[313172446,1706875839226,-500.0,0.00027397,2]
[313172447,1706875839235,-500.0,0.00027397,2]
[313172448,1706875839244,-500.0,0.00027397,2]
[313172449,1706875839253,-500.0,0.00027397,2]
[313172450,1706875839262,-508.78,0.00027397,2]
[313172451,1706875839271,-500.0,0.00027397,2]
[313172452,1706875839280,-500.0,0.00027397,2]
[313172453,1706875839289,-500.0,0.00027397,2]
[313172454,1706875839298,-500.0,0.00027397,2]
[313172455,1706875839307,-500.0,0.00027397,2]
[313172456,1706875839316,-520.34658269,0.00027397,2]
[313172457,1706875839325,-500.0,0.00027397,2]
[313172458,1706875839335,-500.0,0.00027397,2]
[313172459,1706875839346,-500.0,0.00027397,2]
[313172460,1706875839355,-500.0,0.00027397,2]
[313172461,1706875839363,-500.0,0.00027397,2]
[313172462,1706875839373,-500.0,0.00027397,2]
[313172463,1706875839385,-500.0,0.00027397,2]
[313172464,1706875839396,-500.0,0.00027397,2]
[313172465,1706875839406,-500.0,0.00027397,2]
[313172466,1706875839416,-500.0,0.00027397,2]
[313172467,1706875839427,-500.0,0.00027397,2]
[313172468,1706875839437,-500.0,0.00027397,2]
[313172469,1706875839447,-155.0,0.00027397,2]
[313172470,1706875839456,-500.0,0.00027397,2]
[313172471,1706875839465,-500.0,0.00027397,2]
[313172472,1706875839475,-500.0,0.00027397,2]
[313172473,1706875839485,-500.0,0.00027397,2]
[313172474,1706875839494,-500.0,0.00027397,2]
[313172475,1706875839504,-1000.0,0.00027397,2]
[313172476,1706875839513,-500.0,0.00027397,2]
[313172477,1706875839522,-500.0,0.00027397,2]
[313172478,1706875839531,-500.0,0.00027397,2]
[313172479,1706875839539,-500.0,0.00027397,2]
[313172480,1706875839549,-500.0,0.00027397,2]
[313172481,1706875839558,-500.0,0.00027397,2]
[313172482,1706875839567,-500.0,0.00027397,2]
[313172483,1706875839577,-500.0,0.00027397,2]
[313172484,1706875839586,-500.0,0.00027397,2]
[313172485,1706875839596,-452.56522703,0.00027397,2]
[313172486,1706875839605,-606.32,0.00027397,2]